bitfinex/quotes_ETHUSD_20250821
["timestamp","ask_amount","ask_price","bid_price","bid_amount"]
[1755770075003,13.18753602,4286.9,4286.8,0.02]
[1755770075384,12.90063602,4286.9,4286.8,0.3201]
[1755770075787,3.919,4286.9,4286.8,0.3201]
[1755770075984,11.56476002,4286.9,4286.8,0.7733]
[1755770076304,11.56476002,4286.9,4286.8,0.3201]
[1755770077920,3.919,4286.9,4286.8,0.3201]
[1755770078121,11.56476002,4286.9,4286.8,0.3201]
[1755770078886,11.56476002,4286.9,4286.8,0.7733]
[1755770079093,11.56476002,4286.9,4286.8,0.3201]
[1755770079299,7.64576002,4286.9,4286.8,0.3201]
[1755770079484,9.26853602,4286.9,4286.8,0.02]
[1755770079684,13.63743602,4286.9,4286.8,0.02]
[1755770079888,13.18753602,4286.9,4286.8,0.02]
[1755770080928,12.90063602,4286.9,4286.8,0.3201]
[1755770081130,11.56476002,4286.9,4286.8,0.3201]
[1755770084216,11.56476002,4286.9,4286.8,0.021]
[1755770084611,11.56676002,4286.9,4286.8,0.021]
[1755770084938,11.85996002,4286.9,4286.8,0.021]
[1755770085136,13.26957602,4286.9,4286.8,0.021]
[1755770085645,13.71177602,4286.9,4286.8,0.021]
[1755770089237,14.37177602,4286.9,4286.8,0.021]
[1755770089535,14.50301593,4286.9,4286.8,0.021]
[1755770090236,17.50301593,4286.9,4286.8,0.021]
[1755770092540,5.49605591,4286.9,4286.8,0.021]
[1755770092841,11.43899993,4286.9,4286.8,0.021]
[1755770093135,15.65119993,4286.9,4286.8,0.021]
[1755770093341,16.09339993,4286.9,4286.8,0.021]
[1755770093516,16.09259993,4286.9,4286.8,0.021]
[1755770093706,15.65039993,4286.9,4286.8,0.021]
[1755770093910,17.43905992,4286.9,4286.8,0.021]
[1755770094438,17.14585992,4286.9,4286.8,0.3146]
[1755770095707,13.22685992,4286.9,4286.8,0.3146]
[1755770096111,17.14585992,4286.9,4286.8,0.3146]
[1755770096942,17.01462001,4286.9,4286.8,0.3146]
[1755770097240,17.1458392,4286.9,4286.8,0.3146]
[1755770097536,17.1458449,4286.9,4286.8,0.3146]
[1755770098206,0.0012,4286.9,4286.8,0.7735]
[1755770098402,3.9202,4286.9,4286.8,0.7735]
[1755770099014,0.0012,4286.9,4286.8,0.7735]
[1755770099213,3.9202,4286.9,4286.8,0.7735]
[1755770099436,0.0012,4286.9,4286.8,0.7735]
[1755770099834,3.9202,4286.9,4286.8,0.7735]
[1755770100208,0.0012,4286.9,4286.8,0.7735]
[1755770100704,0.0012,4286.9,4286.8,1.64108633]
[1755770101446,0.0012,4286.9,4286.8,1.61775891]
[1755770101612,0.0012,4286.9,4286.8,0.7735]
[1755770102521,3.9202,4286.9,4286.8,0.3146]
[1755770102721,3.9202,4286.9,4286.8,0.7735]
[1755770104014,12.30136002,4286.9,4286.8,0.021]
[1755770104222,13.71099602,4286.9,4286.8,0.021]
[1755770106316,11.56596002,4286.9,4286.8,0.3146]
[1755770106747,11.56596002,4286.9,4286.8,0.021]
[1755770107048,11.85916002,4286.9,4286.8,0.021]
[1755770107749,12.96136002,4286.9,4286.8,0.021]
[1755770109831,15.96136002,4286.9,4286.8,0.021]
[1755770110039,17.86808662,4286.9,4286.8,0.021]
[1755770110954,3.66,4286.8,4285.9,0.001]
[1755770111149,8.59166002,4286.0,4285.9,0.001]
[1755770111447,14.30466002,4286.0,4285.9,0.001]
[1755770111629,16.20942602,4286.0,4285.9,0.001]
[1755770111825,8.563666,4286.0,4285.9,0.001]
[1755770112032,14.77896002,4286.0,4285.9,0.001]
[1755770113321,3.66,4285.9,4285.8,0.02]
[1755770113546,15.50966002,4285.9,4285.8,0.02]
[1755770113719,11.59166002,4285.9,4285.8,0.02]
[1755770113922,1.386096,4285.9,4285.8,0.02]
[1755770114237,14.56776002,4285.9,4285.8,0.3057]
[1755770114440,11.56776002,4285.9,4285.8,0.3057]
[1755770117239,11.56696002,4285.9,4285.8,0.02]
[1755770118325,11.85286002,4285.9,4285.8,0.02]
[1755770118833,11.56696002,4285.9,4285.8,0.02]
[1755770120460,12.58579912,4285.9,4285.8,0.02]
[1755770121361,13.06009912,4285.9,4285.8,0.02]
[1755770121932,12.58579912,4285.9,4285.8,0.02]
[1755770122766,15.29989912,4285.9,4285.8,0.3057]
[1755770123075,1.795,4286.0,4285.8,0.3057]
[1755770123254,3.92,4285.9,4285.8,0.7683]
[1755770123453,1.795,4286.0,4285.9,0.4626]
[1755770123653,1.795,4286.0,4285.9,0.7483]
[1755770123654,5.715,4286.0,4285.9,0.7483]
[1755770124080,13.36076002,4286.0,4285.9,0.7483]
[1755770124438,13.36076002,4286.0,4285.9,0.2857]
[1755770126742,14.98273602,4286.0,4285.8,0.02]
[1755770126976,0.4743,4285.9,4285.8,0.02]
[1755770127181,0.7602,4285.9,4285.8,0.02]
[1755770128338,3.0,4285.9,4285.8,0.02]
[1755770129870,6.919,4285.9,4285.8,0.3057]
[1755770131881,3.919,4285.9,4285.8,0.3057]
[1755770132598,9.44076002,4286.0,4285.8,0.3057]
[1755770132748,3.919,4285.9,4285.8,0.3057]
[1755770134776,9.44076002,4286.0,4285.8,0.3057]
[1755770134987,3.919,4285.9,4285.8,0.3057]
[1755770135984,3.919,4285.9,4285.8,0.7683]
[1755770136172,3.919,4285.9,4285.8,0.3067]
[1755770136376,3.921,4285.9,4285.8,0.3067]
[1755770137486,3.921,4285.9,4285.8,0.7693]
[1755770138168,0.002,4285.9,4285.8,0.7693]
[1755770138480,3.921,4285.9,4285.8,0.7693]
[1755770140062,0.002,4285.9,4285.8,0.7693]
[1755770140263,3.921,4285.9,4285.8,0.7693]
[1755770140981,3.9202,4285.9,4285.8,0.7693]
[1755770144788,0.0012,4285.9,4285.8,0.7693]
[1755770147995,0.0012,4285.9,4284.9,6.53286002]
[1755770148198,0.0012,4285.9,4285.7,7.64576002]
[1755770148398,0.0012,4285.9,4285.8,5.455]
[1755770148606,0.0012,4285.9,4285.8,7.78828666]
[1755770149813,0.0012,4285.9,4285.8,7.96407136]
[1755770151195,0.0012,4285.9,4285.8,19.53783138]
[1755770151501,0.0012,4285.9,4285.8,21.20573955]
[1755770153200,0.0012,4285.9,4285.8,6.63869287]
[1755770153505,0.0012,4285.9,4285.8,0.1757847]
[1755770153703,0.0012,4285.9,4285.8,10.64576002]
[1755770155097,0.0012,4285.9,4285.8,14.58376002]
[1755770156616,0.0012,4285.9,4285.8,14.76164741]
[1755770157798,0.0012,4285.9,4285.8,3.17888739]
[1755770158016,0.0012,4285.9,4285.8,7.43277613]
[1755770158530,0.0012,4285.9,4285.8,7.54957613]
[1755770160812,0.0012,4285.9,4285.8,8.20957613]
[1755770161014,0.0012,4285.9,4285.8,10.42606279]
[1755770161215,0.0012,4285.9,4285.8,10.54286279]
[1755770164836,0.0004,4285.9,4285.8,10.54286279]
[1755770170725,0.0004,4285.9,4285.8,13.00286279]
[1755770170910,0.0004,4285.9,4285.8,10.54286279]
[1755770176017,0.0004,4285.9,4285.8,14.73286279]
[1755770179053,0.022,4286.8,4285.9,3.66]
[1755770179285,0.022,4286.8,4286.7,8.30576002]
[1755770179560,0.022,4286.8,4286.7,15.34556002]
[1755770179750,0.022,4286.8,4286.7,21.86835681]
[1755770179947,0.022,4286.8,4286.7,17.67835681]
[1755770180149,0.022,4286.8,4286.7,17.99624555]
[1755770182352,0.002,4287.4,4286.9,0.66]
[1755770182591,0.002,4287.4,4287.3,13.63823033]
[1755770182737,0.002,4287.4,4287.3,17.56123033]
[1755770182937,0.002,4287.4,4287.3,19.84680764]
[1755770183594,0.002,4287.4,4287.3,19.96115743]
[1755770184080,0.4565,4288.3,4287.7,5.99225272]
[1755770184280,0.4565,4288.3,4287.7,17.67881274]
[1755770185568,0.022,4288.8,4287.7,17.67881274]
[1755770185773,0.4565,4288.2,4287.7,17.67881274]
[1755770188200,0.4565,4288.3,4287.7,17.67881274]
[1755770188363,0.4565,4288.1,4287.7,17.67881274]
[1755770188563,0.0212,4287.8,4287.7,17.67881274]
[1755770188763,0.0212,4287.8,4287.7,18.0127296]
[1755770190092,0.0212,4287.8,4287.7,18.4692296]
[1755770195379,0.4777,4287.8,4287.7,18.4692296]
[1755770195574,0.002,4288.3,4288.2,5.99198078]
[1755770195810,0.002,4288.3,4288.2,19.3477408]
[1755770196005,0.002,4288.3,4288.2,21.63252111]
[1755770196305,0.4585,4288.3,4288.2,21.63252111]
[1755770196512,0.4585,4288.7,4288.6,5.99176327]
[1755770196733,0.4585,4288.7,4288.6,17.55452329]
[1755770196734,0.002,4288.7,4288.6,17.55452329]
[1755770196891,0.022,4288.8,4288.7,5.9917089]
[1755770197081,0.022,4288.8,4288.7,6.32642276]
[1755770197281,0.022,4288.8,4288.7,6.44322276]
[1755770198611,0.022,4288.8,4288.7,6.89972276]
[1755770199785,0.022,4288.8,4288.7,10.81772276]
[1755770200579,0.4585,4289.9,4288.8,2.33165454]
[1755770200793,0.4585,4289.7,4289.1,13.63725147]
[1755770200993,0.4585,4289.7,4289.1,19.46405147]
[1755770201408,0.4585,4289.7,4289.1,19.55747847]
[1755770201623,0.437,4289.5,4289.1,19.55747847]
[1755770202018,0.439,4289.2,4289.1,19.55747847]
[1755770203297,0.002,4289.2,4289.1,19.55747847]
[1755770203504,0.002,4289.2,4289.1,19.96326568]
[1755770205233,0.439,4289.2,4289.1,19.96326568]
[1755770205593,0.439,4289.2,4289.1,24.15326568]
[1755770206793,0.7297,4289.2,4289.1,12.59050566]
[1755770206997,0.7297,4289.2,4289.1,20.75498702]
[1755770207334,0.7297,4289.2,4289.1,8.3498]
[1755770207505,0.7297,4289.2,4289.1,7.8748]
[1755770207713,0.7297,4289.2,4289.1,1.9098]
[1755770208113,0.7297,4289.2,4289.1,5.71]
[1755770210738,0.7297,4289.2,4289.1,1.793]
[1755770211036,0.8465,4289.2,4289.0,3.916]
[1755770211198,0.4095,4289.2,4289.0,3.916]
[1755770211402,0.437,4289.1,4289.0,3.916]
[1755770211640,0.7277,4289.1,4289.0,3.916]
[1755770212438,0.7269,4289.1,4289.0,3.916]
[1755770213131,0.7269,4289.1,4288.7,0.17393229]
[1755770213132,0.7269,4289.1,4288.9,3.916]
[1755770213353,0.2907,4289.1,4288.9,3.916]
[1755770214441,0.2907,4289.1,4288.4,1.793]
[1755770214442,0.437,4289.0,4288.4,1.793]
[1755770214619,0.1168,4288.8,4288.5,3.916]
[1755770214812,0.2907,4288.6,4288.5,3.916]
[1755770215016,0.7277,4288.6,4288.5,3.916]
[1755770215942,0.2907,4288.6,4288.5,3.93931817]
[1755770216142,0.7277,4288.6,4288.5,3.93931817]
[1755770216643,0.7277,4288.6,4288.5,3.916]
[1755770216939,0.2907,4288.6,4288.5,3.916]
[1755770217140,0.2907,4288.6,4288.5,4.0328]
[1755770217947,0.437,4288.9,4288.5,4.05611817]
[1755770218251,0.437,4288.8,4288.7,7.64576002]
[1755770218534,0.7277,4288.8,4288.7,11.56176002]
[1755770218762,0.7277,4288.8,4288.5,0.1168]
[1755770219051,0.2907,4288.8,4288.7,3.916]
[1755770219610,0.7277,4288.8,4288.7,3.916]
[1755770220437,0.2907,4288.8,4288.7,3.916]
[1755770220811,0.7277,4288.8,4288.7,3.916]
[1755770221811,0.7277,4288.8,4288.4,1.96792512]
[1755770221812,0.7277,4288.8,4288.4,0.17492512]
[1755770222007,0.437,4288.7,4288.4,3.916]
[1755770222243,0.2907,4288.5,4288.4,6.916]
[1755770222538,0.7277,4288.5,4288.4,6.916]
[1755770224810,0.7277,4288.5,4288.4,7.08705501]
[1755770225914,0.7277,4288.5,4288.4,7.29705501]
[1755770227222,0.7277,4288.5,4288.4,0.21]
[1755770227733,1.565046,4288.5,4288.4,0.21]
[1755770228040,1.681846,4288.5,4288.4,0.21]
[1755770228239,0.8445,4288.5,4288.4,0.21]
[1755770235545,4.7615,4288.5,4288.4,0.21]
[1755770236251,4.7607,4288.5,4288.4,0.21]
[1755770236447,4.7834,4288.5,4288.4,0.21]
[1755770236956,0.4067,4288.5,4288.4,0.21]
[1755770237244,0.1168,4288.5,4288.4,0.498]
[1755770237453,1.793,4288.8,4288.4,0.498]
[1755770237640,0.1168,4288.7,4288.4,0.498]
[1755770237822,0.1168,4288.7,4288.5,0.48351817]
[1755770238019,0.002,4289.2,4288.6,0.288]
[1755770238235,0.1168,4288.9,4288.6,0.288]
[1755770238430,0.1168,4288.9,4288.6,0.7482]
[1755770238752,0.1168,4288.9,4288.7,0.4602]
[1755770238949,0.1168,4288.9,4288.8,0.288]
[1755770239251,0.1168,4288.9,4288.8,0.7482]
[1755770239755,0.1168,4288.9,4288.8,0.288]
[1755770243267,0.1168,4288.9,4288.8,0.7482]
[1755770243859,0.002,4289.2,4288.8,0.7482]
[1755770243860,0.1168,4289.1,4288.8,0.7482]
[1755770244153,0.1168,4289.1,4288.9,8.12927602]
[1755770244360,0.1168,4289.1,4289.0,0.288]
[1755770244653,0.1168,4289.1,4289.0,0.7482]
[1755770245531,0.1168,4289.1,4289.0,0.77151545]
[1755770246582,0.1168,4289.1,4289.0,0.288]
[1755770246785,0.4114,4289.1,4288.5,0.1168]
[1755770246935,0.4114,4289.1,4288.5,3.916]
[1755770246936,0.8711,4289.1,4288.5,3.916]
[1755770247134,0.4597,4289.0,4288.5,3.916]
[1755770247346,0.2946,4288.6,4288.5,3.916]
[1755770248257,0.2946,4288.6,4288.4,0.21]
[1755770248458,0.2946,4288.6,4288.4,3.21]
[1755770248868,0.2946,4288.6,4288.4,0.21]
[1755770249398,0.2946,4288.6,4288.4,3.54278]
[1755770252643,0.2946,4288.6,4288.4,0.21]
[1755770252844,0.4597,4288.5,4288.4,0.21]
[1755770253065,8.40006002,4288.5,4288.4,0.21]
[1755770255579,8.40006002,4288.5,4288.4,0.23]
[1755770256480,8.40206002,4288.5,4288.4,0.23]
[1755770256778,9.24226602,4288.5,4288.4,0.23]
[1755770257790,13.15826602,4288.5,4288.4,0.23]
[1755770259781,13.15746602,4288.5,4288.4,0.23]
[1755770260684,13.03746602,4288.5,4288.4,0.23]
[1755770262898,13.15426602,4288.5,4288.4,0.23]
[1755770263290,4.9754266,4288.4,4285.3,0.001]
[1755770263496,7.99246452,4288.4,4285.4,0.456]
[1755770263793,7.99246452,4288.4,4285.9,0.0012]
[1755770263794,7.64576002,4287.4,4285.9,0.0012]
[1755770264002,0.66,4287.2,4286.0,0.456]
[1755770264162,1.412176,4287.1,4286.0,0.456]
[1755770264504,1.412176,4287.1,4285.8,0.04433286]
[1755770264505,0.1168,4285.9,4285.8,0.021]
[1755770264664,0.4656,4287.0,4285.8,0.021]
[1755770264665,4.023,4286.1,4285.8,0.021]
[1755770264865,4.026,4286.1,4285.8,0.021]
[1755770266666,11.67176002,4286.1,4285.8,0.021]
[1755770267070,1.794,4286.4,4285.8,0.3292]
[1755770267290,4.024,4286.3,4285.8,0.3292]
[1755770267597,11.66976002,4286.3,4285.8,0.7852]
[1755770268164,7.64576002,4286.3,4285.8,0.3292]
[1755770268365,4.023,4286.2,4285.8,0.3292]
[1755770268706,7.64576002,4286.0,4285.8,0.021]
[1755770269170,0.2456,4285.9,4285.8,0.021]
[1755770269373,4.2676,4285.9,4285.8,0.021]
[1755770270684,4.022,4285.9,4285.8,0.021]
[1755770271699,4.2697,4285.9,4285.8,0.021]
[1755770273676,4.731,4285.9,4285.8,0.021]
[1755770273881,5.24796507,4285.9,4285.8,0.021]
[1755770274603,5.36476507,4285.9,4285.8,0.021]
[1755770278012,9.02476507,4285.9,4285.8,0.021]
[1755770283732,9.02396507,4285.9,4285.8,0.021]
[1755770289008,3.66,4285.8,4285.3,0.001]
[1755770289327,3.66,4285.8,4285.1,0.001]
[1755770289328,3.66,4285.3,4285.1,0.001]
[1755770289529,9.59246257,4285.2,4285.1,0.001]
[1755770289707,10.05806257,4285.2,4285.1,0.001]
[1755770289895,11.90612483,4285.2,4285.1,0.001]
[1755770290295,12.56612483,4285.2,4285.1,0.001]
[1755770291129,3.66,4285.1,4284.9,0.001]
[1755770291427,16.23532259,4285.0,4284.9,0.001]
[1755770291596,16.67532259,4285.0,4284.9,0.001]
[1755770291796,13.7713582,4285.0,4284.9,0.001]
[1755770291997,17.7743582,4285.0,4284.9,0.001]
[1755770292537,18.2143582,4285.0,4284.9,0.001]
[1755770293315,17.7743582,4285.0,4284.9,0.001]
[1755770294319,18.27652339,4285.0,4284.9,0.001]
[1755770295243,0.1168,4285.0,4284.9,0.7258]
[1755770295426,4.1178,4285.0,4284.9,0.7258]
[1755770300649,4.1118,4285.0,4284.9,0.7258]
[1755770303844,0.1168,4285.0,4284.9,0.7258]
[1755770304040,4.1088,4285.0,4284.9,0.7258]
[1755770304746,0.1168,4285.0,4284.9,0.7258]
[1755770305243,0.1168,4285.0,4284.9,0.2872]
[1755770305412,0.1168,4285.0,4284.9,0.7258]
[1755770307233,0.116,4285.0,4284.9,0.7258]
[1755770323487,4.09,4285.0,4284.9,0.7258]
[1755770324505,4.09,4285.0,4284.9,0.2872]
[1755770325494,4.089,4285.0,4284.9,0.2872]
[1755770325648,0.116,4285.0,4284.9,0.7513]
[1755770325847,4.087,4285.0,4284.9,0.7513]
[1755770326358,0.116,4285.0,4284.9,0.7513]
[1755770326571,4.086,4285.0,4284.9,0.7513]
[1755770327776,4.0848334,4285.0,4284.9,0.7513]
[1755770328149,4.0838334,4285.0,4284.9,0.7513]
[1755770328652,4.0838334,4285.0,4284.9,0.2872]
[1755770329349,4.0838334,4285.0,4284.9,0.001]
[1755770329350,4.3846334,4285.0,4284.9,0.001]
[1755770329682,4.0838334,4285.0,4284.9,0.778]
[1755770330183,4.0818334,4285.0,4284.9,0.778]
[1755770331182,4.0810334,4285.0,4284.9,0.778]
[1755770331482,4.0810334,4285.0,4284.9,0.3139]
[1755770331654,4.0810334,4285.0,4284.9,0.778]
[1755770333464,4.0780334,4285.0,4284.9,0.778]
[1755770336382,4.0780334,4285.0,4284.9,0.3139]
[1755770340591,4.0720334,4285.0,4284.9,0.778]
[1755770342370,4.0720334,4285.0,4284.9,0.3139]
[1755770342576,4.0740334,4285.0,4284.9,0.3139]
[1755770355118,4.0732334,4285.0,4284.9,0.3139]
[1755770356987,0.1152334,4285.0,4284.9,0.3139]
[1755770357315,0.1152334,4285.0,4284.9,0.7855]
[1755770357502,0.1152334,4285.0,4284.9,1.16615]
[1755770359102,0.1152334,4285.0,4284.9,1.281384]
[1755770360925,0.1152334,4285.0,4284.9,1.281384]
[1755770362634,0.002,4285.0,4284.9,1.281384]
[1755770362833,0.002,4285.0,4284.9,0.900734]
[1755770363631,0.002,4285.0,4284.9,3.900734]
[1755770366398,0.002,4285.0,4284.9,0.900734]
[1755770366605,0.002,4285.0,4284.9,11.54649402]
[1755770366805,0.002,4285.0,4284.9,13.10892342]
[1755770368305,0.002,4285.0,4284.9,12.27165684]
[1755770375833,0.002,4285.0,4284.9,5.4631634]
[1755770377343,0.002,4285.0,4284.9,9.4001634]
[1755770377840,0.2993,4285.0,4284.9,4.6786634]
[1755770378144,0.002,4285.0,4284.9,0.7882]
[1755770378438,0.002,4285.0,4284.9,1.0875]
[1755770378608,0.0012,4285.0,4284.9,4.11083776]
[1755770378812,0.0012,4285.0,4284.9,6.26776246]
[1755770379713,0.0012,4285.0,4284.9,5.79616246]
[1755770380811,0.0012,4285.0,4284.9,6.26776246]
[1755770381444,0.2938,4285.0,4284.9,3.3003]
[1755770381642,0.7571,4285.0,4284.9,0.001]
[1755770381845,0.8739,4285.0,4284.9,0.001]
[1755770383139,7.68239344,4285.0,4284.9,0.001]
[1755770386353,8.53847233,4285.0,4284.9,0.001]
[1755770386649,1.90744723,4285.0,4284.9,0.001]
[1755770386847,5.84344723,4285.0,4284.9,0.001]
[1755770388932,5.84444723,4285.0,4284.9,0.001]
[1755770392941,13.50901956,4285.0,4284.9,0.001]
[1755770394473,1.90744723,4285.0,4284.9,0.001]
[1755770394675,0.118,4285.0,4284.9,0.293]
[1755770394877,4.055,4285.0,4284.9,0.7555]
[1755770397144,0.118,4285.0,4284.9,0.7555]
[1755770400574,0.118,4285.0,4284.9,1.457165]
[1755770400777,0.118,4285.0,4284.9,1.66977373]
[1755770401076,0.118,4285.0,4284.9,2.37143873]
[1755770401278,0.118,4285.0,4284.9,2.39477649]
[1755770401670,0.118,4285.0,4284.9,2.37143873]
[1755770401978,0.118,4285.0,4284.9,0.994665]
[1755770402275,0.1172,4285.0,4284.9,1.457165]
[1755770402680,0.4098,4285.0,4284.9,0.702665]
[1755770402980,0.8731,4285.0,4284.9,0.702665]
[1755770403184,1.5331,4285.0,4284.9,0.001]
[1755770403479,2.96026723,4285.0,4284.9,0.001]
[1755770404779,6.23726723,4285.0,4284.9,0.001]
[1755770405088,6.89726723,4285.0,4284.9,0.001]
[1755770407956,2.96026723,4285.0,4284.9,0.001]
[1755770408147,6.89726723,4285.0,4284.9,0.001]
[1755770410381,10.40087782,4285.0,4284.9,0.001]
[1755770410684,16.01187782,4285.0,4284.9,0.001]
[1755770410979,16.58017609,4285.0,4284.9,0.001]
[1755770412109,16.58013978,4285.0,4284.9,0.001]
[1755770413475,16.58013978,4285.0,4284.0,0.001]
[1755770413476,3.66,4284.9,4284.0,0.001]
[1755770413682,11.63067233,4284.5,4284.0,0.001]
[1755770413976,16.18808292,4284.5,4284.0,0.001]
[1755770414355,16.65338292,4284.5,4284.0,0.001]
[1755770415401,3.66,4284.4,4284.0,0.001]
[1755770415697,11.74747233,4284.1,4284.0,0.001]
[1755770416014,11.74747233,4284.1,4282.8,0.02]
[1755770416015,3.66,4284.0,4282.8,0.02]
[1755770416284,8.74747233,4282.9,4282.8,0.02]
[1755770416484,14.48047233,4282.9,4282.8,0.02]
[1755770416654,16.59541716,4282.9,4282.8,0.02]
[1755770416853,19.59541716,4282.9,4282.8,0.02]
[1755770417575,7.52854483,4282.9,4282.8,0.02]
[1755770417775,5.8498,4282.9,4282.8,0.794]
[1755770418086,6.5098,4282.9,4282.8,0.3294]
[1755770418285,6.8159,4282.9,4282.8,0.02]
[1755770419082,6.5098,4282.9,4282.8,0.794]
[1755770419278,10.23737233,4282.9,4282.8,0.794]
[1755770419467,14.17437233,4282.9,4282.8,0.794]
[1755770419669,16.45910956,4282.9,4282.8,0.02]
[1755770419864,4.55143723,4282.9,4282.8,0.794]
[1755770420089,6.5108,4282.9,4282.8,0.794]
[1755770421170,6.5108,4282.9,4282.8,0.02]
[1755770421370,6.8169,4282.9,4282.8,0.02]
[1755770421581,9.8169,4282.9,4282.8,0.02]
[1755770421781,10.2822,4282.9,4282.8,0.02]
[1755770422071,12.63807723,4282.9,4282.8,0.02]
[1755770423594,12.63727723,4282.9,4282.8,0.02]
[1755770423982,12.63727723,4282.9,4282.8,0.021]
[1755770425373,11.32457233,4282.0,4281.9,0.001]
[1755770425574,5.456,4282.0,4281.9,0.3104]
[1755770425769,1.9128,4282.0,4281.9,0.775]
[1755770425998,5.8538,4282.0,4281.9,0.775]
[1755770426219,5.853,4282.0,4281.9,0.775]
[1755770426377,1.912,4282.0,4281.9,0.775]
[1755770427095,0.1168,4282.0,4281.9,3.79835411]
[1755770427404,4.0618,4282.3,4281.9,1.92329264]
[1755770427591,4.0618,4282.3,4281.9,3.3104]
[1755770427902,4.0618,4282.3,4282.0,0.4646]
[1755770428101,4.0618,4282.3,4282.2,0.3094]
[1755770428303,4.0618,4282.3,4282.2,0.774]
[1755770429678,4.0628,4282.3,4282.2,0.774]
[1755770430804,0.1168,4282.3,4282.2,0.774]
[1755770431007,4.0628,4282.3,4282.2,0.774]
[1755770432002,0.1168,4282.3,4282.2,0.774]
[1755770432199,0.1168,4282.3,4282.2,1.62029264]
[1755770435285,0.1168,4282.3,4282.2,4.62029264]
[1755770436922,0.1168,4282.3,4282.2,1.62029264]
[1755770441327,0.1188,4282.3,4282.2,1.62029264]
[1755770442639,0.1188,4282.3,4282.2,9.28486497]
[1755770442823,0.1188,4282.3,4282.2,12.28486497]
[1755770445132,0.1188,4282.3,4282.2,4.62029264]
[1755770446536,0.1188,4282.3,4282.2,1.62029264]
[1755770447008,0.1188,4282.3,4282.2,9.28486497]
[1755770447210,0.002,4282.3,4282.2,9.28486497]
[1755770447411,0.002,4282.3,4282.2,12.98686597]
[1755770448041,0.002,4282.3,4282.2,13.10366597]
[1755770449823,0.0012,4282.3,4282.2,13.10366597]
[1755770450232,0.0012,4282.3,4282.2,15.4389142]
[1755770451002,0.0012,4282.3,4282.2,17.8949142]
[1755770451208,0.002,4282.8,4282.5,2.33508464]
[1755770451403,0.002,4282.8,4282.7,10.96537233]
[1755770451632,0.002,4282.8,4282.7,17.89834792]
[1755770451826,0.002,4282.8,4282.7,18.46034792]
[1755770455732,0.002,4283.7,4282.9,0.66]
[1755770455951,0.002,4283.7,4283.6,11.08217233]
[1755770456105,0.002,4283.7,4283.6,16.1430654]
[1755770456437,0.002,4283.7,4283.6,16.5882654]
[1755770458342,0.3037,4283.7,4283.6,4.23969307]
[1755770458541,0.3037,4283.7,4283.6,7.0548]
[1755770458841,0.3037,4283.7,4283.6,3.0]
[1755770459142,0.3037,4283.7,4283.6,6.938]
[1755770459845,0.002,4283.7,4283.6,6.938]
[1755770460141,0.002,4283.7,4283.6,8.40993723]
[1755770460315,0.3037,4283.7,4283.6,8.40993723]
[1755770460846,0.7582,4283.7,4283.0,1.796]
[1755770461055,0.1168,4283.3,4283.1,3.937]
[1755770461348,0.7562,4283.2,4283.0,3.937]
[1755770461645,0.4545,4283.1,4282.6,7.66457233]
[1755770461857,0.4545,4283.1,4282.3,1.796]
[1755770461858,0.1168,4282.8,4281.8,0.19710647]
[1755770462058,0.1168,4282.4,4282.1,3.937]
[1755770462212,0.1168,4282.4,4282.0,3.938]
[1755770462213,0.3017,4282.2,4282.0,3.938]
[1755770462412,0.1168,4282.4,4282.2,7.66457233]
[1755770462950,0.1168,4282.4,4282.0,3.938]
[1755770462951,0.7562,4282.3,4282.0,3.938]
[1755770463115,0.4545,4282.2,4282.0,3.938]
[1755770463313,0.7562,4282.1,4282.0,3.001]
[1755770463722,0.873,4282.1,4282.0,3.001]
[1755770464357,0.873,4282.1,4282.0,3.9977]
[1755770464358,0.1168,4282.1,4282.0,3.9977]
[1755770464540,0.1168,4282.4,4282.0,4.4429]
[1755770464715,0.1168,4282.4,4282.3,7.66457233]
[1755770464915,0.1168,4282.4,4282.3,7.96537233]
[1755770465152,0.1168,4282.4,4282.3,11.90337233]
[1755770465351,0.4185,4282.4,4282.3,3.938]
[1755770466426,0.1168,4282.4,4282.3,11.90337233]
[1755770466626,1.796,4283.0,4282.3,13.39380956]
[1755770466849,0.1168,4282.7,4282.3,11.90337233]
[1755770467233,0.1168,4282.7,4282.4,0.02335139]
[1755770467553,0.1168,4282.7,4282.3,11.90337233]
[1755770467554,0.1168,4282.7,4282.5,3.938]
[1755770469345,0.1168,4282.7,4282.6,0.0233503]
[1755770470727,0.1168,4282.7,4282.5,3.938]
[1755770471733,0.0775,4282.6,4282.5,3.938]
[1755770471933,0.0775,4282.6,4282.3,7.66457233]
[1755770471934,0.5216,4282.6,4282.3,3.938]
[1755770472190,0.0775,4282.6,4282.3,3.938]
[1755770472460,0.4441,4282.5,4282.0,3.001]
[1755770472619,0.2046,4282.1,4282.0,3.001]
[1755770473758,0.2038,4282.1,4282.0,3.001]
[1755770474646,0.2038,4282.1,4282.0,0.001]
[1755770474865,0.6444,4282.1,4282.0,0.001]
[1755770475575,0.1168,4282.1,4282.0,0.001]
[1755770475776,0.2065,4282.1,4282.0,0.001]
[1755770475981,0.1168,4282.1,4282.0,1.47685723]
[1755770477050,0.1168,4282.1,4282.0,5.88695723]
[1755770477248,0.1168,4282.1,4282.0,13.07942956]